bitfinex/quotes_BTCUSD_20250714
["timestamp","ask_amount","ask_price","bid_price","bid_amount"]
[1752462485757,0.03004085,119620.0,119590.0,0.00647768]
[1752462485758,1.07929083,119620.0,119590.0,0.00647768]
[1752462485956,0.65019235,119600.0,119590.0,0.20675768]
[1752462486158,0.3503266,119600.0,119590.0,0.33491768]
[1752462486365,0.03391,119600.0,119590.0,0.33491768]
[1752462486582,0.32170486,119600.0,119590.0,0.34013768]
[1752462486791,0.32070486,119600.0,119590.0,0.34018733]
[1752462487016,0.65782061,119600.0,119590.0,0.20680733]
[1752462487200,1.09779139,119600.0,119590.0,0.33504733]
[1752462487430,1.10279139,119600.0,119590.0,0.33604733]
[1752462487652,1.10479139,119600.0,119590.0,0.33604733]
[1752462488030,1.10479139,119600.0,119590.0,0.20780733]
[1752462488233,1.10479139,119600.0,119590.0,0.33612733]
[1752462489315,0.78701479,119600.0,119590.0,0.33612733]
[1752462489554,0.66968486,119600.0,119590.0,0.34134733]
[1752462489754,0.36582911,119600.0,119590.0,0.34134733]
[1752462490211,0.36582911,119600.0,119590.0,0.57175726]
[1752462490212,0.007,119600.0,119590.0,0.57175726]
[1752462490429,0.007,119600.0,119590.0,0.65463369]
[1752462491353,0.002,119600.0,119590.0,0.95550944]
[1752462491580,0.002,119600.0,119590.0,0.65363369]
[1752462491809,0.004,119600.0,119590.0,0.65663369]
[1752462492252,0.002,119600.0,119590.0,0.65663369]
[1752462492701,0.002,119600.0,119590.0,0.65863369]
[1752462494296,0.002,119600.0,119590.0,0.96050944]
[1752462494545,0.002,119600.0,119590.0,0.65863369]
[1752462494765,0.002,119600.0,119590.0,0.95433369]
[1752462494978,0.002,119600.0,119590.0,1.25620944]
[1752462496668,0.002,119600.0,119590.0,1.28157667]
[1752462496847,0.002,119600.0,119590.0,1.30663267]
[1752462497717,0.002,119600.0,119590.0,1.64109267]
[1752462499386,0.00158192,119600.0,119590.0,1.64109267]
[1752462499826,0.00158192,119600.0,119590.0,1.33921692]
[1752462500056,0.00158192,119600.0,119590.0,1.64109267]
[1752462505762,0.00158192,119600.0,119590.0,1.63909267]
[1752462505977,0.34,119630.0,119590.0,1.60669267]
[1752462506189,0.34,119630.0,119610.0,0.0314]
[1752462506400,0.34,119630.0,119620.0,0.34716993]
[1752462506550,0.34,119630.0,119620.0,0.64286993]
[1752462506761,0.34,119630.0,119620.0,0.97725993]
[1752462507355,0.341,119630.0,119620.0,0.97725993]
[1752462508433,0.001,119630.0,119620.0,0.97725993]
[1752462508605,0.32222864,119640.0,119620.0,0.97725993]
[1752462508809,0.32222864,119640.0,119630.0,0.25648]
[1752462509011,0.32420864,119640.0,119630.0,0.59606]
[1752462509611,0.65814439,119640.0,119630.0,0.4626]
[1752462509982,0.36426864,119640.0,119630.0,0.46364965]
[1752462511136,0.36626864,119640.0,119630.0,0.46364965]
[1752462511906,0.36626864,119640.0,119630.0,0.66392965]
[1752462513869,0.06439289,119640.0,119630.0,0.66392965]
[1752462514084,0.36626864,119640.0,119630.0,0.66392965]
[1752462515127,0.36490864,119640.0,119630.0,0.66392965]
[1752462516791,0.36292864,119640.0,119630.0,0.66392965]
[1752462517005,0.36491864,119640.0,119630.0,0.66691965]
[1752462517478,0.36491864,119640.0,119630.0,0.66899965]
[1752462517886,0.33222864,119640.0,119630.0,0.66899965]
[1752462519793,0.33420864,119640.0,119630.0,0.66899965]
[1752462521463,0.33222864,119640.0,119630.0,0.66899965]
[1752462523097,0.03035289,119640.0,119630.0,0.66899965]
[1752462523302,0.33222864,119640.0,119630.0,0.66899965]
[1752462525284,0.03035289,119640.0,119630.0,0.66899965]
[1752462525481,0.33222864,119640.0,119630.0,0.66899965]
[1752462525692,0.01,119640.0,119630.0,0.66899965]
[1752462526575,0.01,119640.0,119630.0,1.07065183]
[1752462526943,0.01,119640.0,119630.0,1.15608176]
[1752462527292,0.002,119640.0,119630.0,1.15508176]
[1752462527512,0.003,119640.0,119630.0,1.15608176]
[1752462527898,0.002,119640.0,119630.0,1.15508176]
[1752462528322,0.001,119640.0,119630.0,1.15708176]
[1752462528577,0.001,119640.0,119630.0,1.15808176]
[1752462529206,0.001,119640.0,119630.0,1.15708176]
[1752462529327,0.001,119640.0,119630.0,1.15908176]
[1752462535906,0.001,119640.0,119630.0,1.26320176]
[1752462537867,0.001,119640.0,119630.0,1.19622533]
[1752462542342,0.001,119640.0,119630.0,0.89398958]
[1752462542552,0.001,119640.0,119630.0,0.73326958]
[1752462543008,0.30485575,119640.0,119630.0,0.53302958]
[1752462543208,0.30485575,119640.0,119630.0,0.86326958]
[1752462543618,0.00289821,119640.0,119630.0,0.86326958]
[1752462544062,0.00289821,119640.0,119630.0,0.73326958]
[1752462544264,0.33537396,119640.0,119630.0,0.85815958]
[1752462544602,0.33537396,119640.0,119630.0,0.72819958]
[1752462545032,0.33537396,119640.0,119630.0,0.85811958]
[1752462546238,0.03349821,119640.0,119630.0,0.85811958]
[1752462547513,0.03349821,119640.0,119630.0,0.75399958]
[1752462549777,0.03349821,119640.0,119630.0,0.75717958]
[1752462550213,0.03349821,119640.0,119630.0,0.75921958]
[1752462552721,0.03349821,119640.0,119630.0,0.75717958]
[1752462552929,0.33537396,119640.0,119630.0,0.75717958]
[1752462553603,0.33537396,119640.0,119630.0,0.75921958]
[1752462553803,0.03349821,119640.0,119630.0,0.75921958]
[1752462555303,0.03349821,119640.0,119630.0,0.54182965]
[1752462555535,0.33537396,119640.0,119630.0,0.66832965]
[1752462555735,0.33537396,119640.0,119630.0,0.53864965]
[1752462555911,0.33673396,119640.0,119630.0,0.66832965]
[1752462556387,0.33537396,119640.0,119630.0,0.66832965]
[1752462557127,0.33445575,119640.0,119630.0,0.66632965]
[1752462557529,0.33445575,119640.0,119630.0,0.66432965]
[1752462558392,0.33745575,119640.0,119630.0,0.66532965]
[1752462571647,0.03558,119640.0,119630.0,0.66532965]
[1752462571861,0.33745575,119640.0,119630.0,0.66532965]
[1752462572067,0.33745575,119640.0,119630.0,0.66845965]
[1752462572490,0.003,119640.0,119630.0,0.67059965]
[1752462572708,0.003,119640.0,119630.0,1.09040533]
[1752462573134,0.003,119640.0,119630.0,0.78852958]
[1752462578131,0.003,119640.0,119630.0,1.09040533]
[1752462579030,0.003,119640.0,119630.0,1.11545333]
[1752462579663,0.003,119640.0,119630.0,0.81357758]
[1752462579879,0.003,119640.0,119630.0,1.11545333]
[1752462581438,0.003,119640.0,119630.0,0.81357758]
[1752462582971,0.30487575,119640.0,119630.0,0.62634958]
[1752462583210,0.33875575,119640.0,119630.0,0.66484965]
[1752462583413,0.33875575,119640.0,119630.0,0.66797965]
[1752462584365,0.33875575,119640.0,119630.0,0.53877965]
[1752462584569,0.33875575,119640.0,119630.0,0.66797965]
[1752462585672,0.33875575,119640.0,119630.0,0.67011965]
[1752462586821,0.33888278,119640.0,119630.0,0.67011965]
[1752462588117,0.00510703,119640.0,119630.0,0.66999965]
[1752462588336,0.003,119640.0,119630.0,0.66987262]
[1752462589619,0.003,119640.0,119630.0,0.78790255]
[1752462590911,0.003,119640.0,119630.0,1.0897783]
[1752462591812,0.003,119640.0,119630.0,0.78790255]
[1752462592023,0.003,119640.0,119630.0,1.0897783]
[1752462599467,0.003,119640.0,119630.0,1.1148243]
[1752462601450,0.003,119640.0,119630.0,1.1248243]
[1752462601926,0.0002,119660.0,119640.0,0.0314]
[1752462602144,0.0002,119660.0,119650.0,0.34527993]
[1752462602579,0.0002,119660.0,119650.0,0.68273993]
[1752462603035,0.0002,119660.0,119650.0,0.71413993]
[1752462603465,0.0002,119660.0,119650.0,0.68273993]
[1752462603694,0.0022,119660.0,119650.0,0.68273993]
[1752462604133,0.0002,119660.0,119650.0,0.68273993]
[1752462604416,0.0032,119660.0,119650.0,0.68373993]
[1752462607054,0.0032,119660.0,119650.0,0.97943993]
[1752462608527,0.0032,119660.0,119650.0,1.02781918]
[1752462609713,0.0032,119660.0,119650.0,1.01203993]
[1752462610466,0.0032,119660.0,119650.0,0.99593993]
[1752462611692,0.0032,119660.0,119650.0,1.01142905]
[1752462612598,0.0032,119660.0,119650.0,0.99492905]
[1752462612795,0.00518,119660.0,119650.0,0.97440993]
[1752462613001,0.33825575,119660.0,119650.0,0.97440993]
[1752462613424,0.33825575,119660.0,119650.0,0.97943993]
[1752462613634,0.03638,119660.0,119650.0,0.97943993]
[1752462614459,0.02108,119660.0,119650.0,0.97943993]
[1752462614906,0.0191,119660.0,119650.0,0.97943993]
[1752462615110,0.0032,119660.0,119650.0,0.97943993]
[1752462618346,0.0032,119660.0,119650.0,1.31291568]
[1752462619478,0.0032,119660.0,119650.0,1.01103993]
[1752462620072,0.0032,119660.0,119650.0,1.31291568]
[1752462620286,0.0032,119660.0,119650.0,1.01103993]
[1752462620489,0.0032,119660.0,119650.0,0.33544]
[1752462620490,0.34091575,119660.0,119650.0,0.33544]
[1752462620694,0.3554566,119660.0,119650.0,0.46412]
[1752462621324,0.3554566,119660.0,119650.0,0.46612]
[1752462621777,0.3554566,119660.0,119650.0,0.46412]
[1752462622010,0.3554566,119660.0,119650.0,0.46312]
[1752462622011,0.3524566,119660.0,119650.0,0.46312]
[1752462622731,0.3510966,119660.0,119650.0,0.46312]
[1752462622942,0.3540966,119660.0,119650.0,0.46412]
[1752462623391,0.0032,119660.0,119650.0,0.55457993]
[1752462625158,0.0032,119660.0,119650.0,0.42589993]
[1752462625366,0.0032,119660.0,119650.0,0.55457993]
[1752462627477,0.33963575,119660.0,119650.0,0.55457993]
[1752462627683,0.33963575,119660.0,119650.0,0.54954993]
[1752462628322,0.33963575,119660.0,119650.0,0.55457993]
[1752462629134,0.33963575,119660.0,119650.0,0.42589993]
[1752462629338,0.33963575,119660.0,119650.0,0.55453993]
[1752462629567,0.33963575,119660.0,119650.0,0.55252993]
[1752462629779,0.33963575,119660.0,119650.0,0.54950993]
[1752462631465,0.3554666,119660.0,119650.0,0.33544]
[1752462631664,0.3554666,119660.0,119650.0,0.46404]
[1752462633072,0.3541766,119660.0,119650.0,0.46404]
[1752462633685,0.3554666,119660.0,119650.0,0.46404]
[1752462635134,0.05359085,119660.0,119650.0,0.46404]
[1752462635363,0.05230085,119660.0,119650.0,0.46392]
[1752462635592,0.3541766,119660.0,119650.0,0.46392]
[1752462639762,0.3541766,119660.0,119650.0,0.46922]
[1752462642156,0.05230085,119660.0,119650.0,0.46922]
[1752462642383,0.3541766,119660.0,119650.0,0.46922]
[1752462642590,0.3541766,119660.0,119650.0,0.46709]
[1752462645943,0.3541766,119660.0,119650.0,0.46922]
[1752462646155,0.3216766,119660.0,119650.0,0.46922]
[1752462646362,0.3368766,119660.0,119650.0,0.46922]
[1752462647571,0.3524766,119660.0,119650.0,0.46922]
[1752462650599,0.3524766,119660.0,119650.0,0.46709]
[1752462650802,0.3524766,119660.0,119650.0,0.46392]
[1752462656341,0.0032,119660.0,119650.0,0.58554993]
[1752462663223,0.30705575,119660.0,119650.0,0.33544]
[1752462663441,0.3526966,119660.0,119650.0,0.46392]
[1752462664092,0.3540566,119660.0,119650.0,0.33544]
[1752462664309,0.6940566,119660.0,119650.0,0.46396]
[1752462664528,0.6926966,119660.0,119650.0,0.46396]
[1752462665415,0.6906966,119660.0,119650.0,0.33444]
[1752462665631,0.6906966,119660.0,119650.0,0.46292]
[1752462666047,0.6956966,119660.0,119650.0,0.46392]
[1752462669131,0.6956966,119660.0,119650.0,0.33544]
[1752462669331,0.3462,119660.0,119650.0,0.46908]
[1752462669532,0.64807575,119660.0,119650.0,0.46908]
[1752462669693,0.3462,119660.0,119650.0,0.48558]
[1752462669890,0.3462,119660.0,119650.0,0.50188]
[1752462670502,0.3462,119660.0,119650.0,0.48558]
[1752462670704,0.3462,119660.0,119650.0,0.46908]
[1752462671632,0.3462,119660.0,119650.0,0.48538]
[1752462672812,0.3462,119660.0,119650.0,0.58720993]
[1752462673572,0.0062,119660.0,119650.0,0.58720993]
[1752462675042,0.0062,119660.0,119650.0,0.88290993]
[1752462682256,0.0062,119660.0,119650.0,1.18478568]
[1752462683594,0.0062,119660.0,119650.0,0.88290993]
[1752462683797,0.0062,119660.0,119650.0,1.18478568]
[1752462684246,0.0062,119660.0,119650.0,0.88290993]
[1752462684481,0.0012,119660.0,119650.0,0.88190993]
[1752462684693,0.0042,119660.0,119650.0,0.88290993]
[1752462684904,0.0032,119660.0,119650.0,1.18478568]
[1752462685744,0.0032,119660.0,119650.0,1.21036002]
[1752462687127,0.0032,119660.0,119650.0,1.22444464]
[1752462688547,0.0032,119660.0,119650.0,1.24948664]
[1752462690465,0.0002,119660.0,119650.0,1.25048664]
[1752462690790,0.0002,119660.0,119650.0,1.25148664]
[1752462692743,0.0002,119660.0,119650.0,1.12304664]
[1752462692945,0.0002,119660.0,119650.0,1.25128664]
[1752462697885,0.0002,119660.0,119650.0,1.35536664]
[1752462699550,0.02,119680.0,119670.0,0.33367575]
[1752462699753,0.02,119680.0,119670.0,0.84515568]
[1752462699929,0.02,119680.0,119670.0,1.18257568]
[1752462700136,0.02,119680.0,119670.0,1.20761568]
[1752462700705,0.02049655,119680.0,119670.0,1.20761568]
[1752462700917,0.02049655,119680.0,119670.0,1.20861568]
[1752462703377,0.02049655,119680.0,119670.0,1.20961568]
[1752462708058,0.02049655,119680.0,119670.0,1.08137568]
[1752462708278,0.02049655,119680.0,119670.0,1.20957568]
[1752462708477,0.00049655,119680.0,119670.0,1.20957568]
[1752462714888,0.00049655,119680.0,119670.0,1.40973568]
[1752462716634,0.00049655,119680.0,119670.0,1.09255993]
[1752462716907,0.00049655,119680.0,119670.0,1.41013568]
[1752462718611,0.00049655,119680.0,119670.0,1.10825993]
[1752462718863,0.00049655,119680.0,119670.0,1.41013568]
[1752462719644,0.0002,119690.0,119680.0,0.9309515]
[1752462719857,0.00028296,119690.0,119680.0,1.14655143]
[1752462720076,0.00028296,119690.0,119680.0,1.48394143]
[1752462720255,0.00028296,119690.0,119680.0,1.50897643]
[1752462721257,0.00028296,119690.0,119680.0,1.20710068]
[1752462722066,0.00028296,119690.0,119680.0,1.20810068]
[1752462722541,0.00028296,119690.0,119680.0,1.21010068]
[1752462725317,0.0002,119710.0,119680.0,1.21010068]
[1752462725529,0.0318,119710.0,119690.0,0.51849568]
[1752462725736,0.0318,119710.0,119700.0,0.13024855]
[1752462725945,0.03378,119710.0,119700.0,0.21567848]
[1752462726195,0.0002,119710.0,119700.0,0.55292993]
[1752462726388,0.0002,119710.0,119700.0,0.85480568]
[1752462726633,0.0002,119710.0,119700.0,1.15050568]
[1752462727278,0.0002,119710.0,119700.0,1.17553868]
[1752462727951,0.0002,119710.0,119700.0,1.17653868]
[1752462728162,0.0022,119710.0,119700.0,1.17653868]
[1752462729090,0.0022,119710.0,119700.0,1.28057868]
[1752462729299,0.0022,119710.0,119700.0,0.97870293]
[1752462729515,0.0022,119710.0,119700.0,1.31167868]
[1752462729929,0.0022,119710.0,119700.0,1.325023]
[1752462730340,0.0022,119710.0,119700.0,1.02314725]
[1752462730512,0.0022,119710.0,119700.0,1.325023]
[1752462733805,0.0022,119710.0,119700.0,1.525143]
[1752462734418,0.0022,119710.0,119700.0,1.22326725]
[1752462734636,0.0022,119710.0,119700.0,1.525143]
[1752462736625,0.0022,119710.0,119700.0,1.494043]
[1752462738367,0.0022,119710.0,119700.0,1.19216725]
[1752462738638,0.0022,119710.0,119700.0,1.494043]
[1752462741063,0.33759575,119710.0,119700.0,1.17374293]
[1752462741261,0.03572,119710.0,119700.0,1.17374293]
[1752462744485,0.03572,119710.0,119700.0,1.17878293]
[1752462746144,0.0336,119710.0,119700.0,1.48065868]
[1752462746546,0.0022,119710.0,119700.0,1.48065868]
[1752462747825,0.0022,119710.0,119700.0,1.51255868]
[1752462750323,0.0002,119710.0,119700.0,1.51155868]
[1752462750741,0.0002,119710.0,119700.0,1.51255868]
[1752462753244,0.0002,119720.0,119710.0,0.2955]
[1752462753473,0.00028293,119720.0,119710.0,0.84767568]
[1752462753681,0.00028293,119720.0,119710.0,1.18194568]
[1752462753866,0.02,119730.0,119710.0,1.18194568]
[1752462754095,0.02,119730.0,119720.0,0.51763388]
[1752462754301,0.02,119730.0,119720.0,0.85511568]
[1752462754511,0.02,119730.0,119720.0,0.88014368]
[1752462755603,0.02,119730.0,119720.0,0.57826793]
[1752462756717,0.0363,119730.0,119720.0,0.57818793]
[1752462756931,0.0393,119730.0,119720.0,0.57918793]
[1752462757143,0.02,119730.0,119720.0,0.57818793]
[1752462757361,0.021,119730.0,119720.0,0.57918793]
[1752462757639,0.021,119730.0,119720.0,0.91336368]
[1752462757849,0.01266304,119730.0,119720.0,0.96336368]
[1752462758068,0.00432631,119730.0,119720.0,0.96336368]
[1752462758486,0.0329,119740.0,119720.0,0.96336368]
[1752462758692,0.0329,119740.0,119730.0,0.21676993]
[1752462758947,0.03488,119740.0,119730.0,0.21676993]
[1752462759160,0.03488,119740.0,119730.0,0.55097993]
[1752462759753,0.03488,119740.0,119730.0,0.55312993]
[1752462759958,0.0032,119740.0,119730.0,0.55412993]
[1752462760586,0.0196,119740.0,119730.0,0.55412993]
[1752462761396,0.0032,119740.0,119730.0,0.55412993]
[1752462762218,0.0032,119740.0,119730.0,0.56752619]
[1752462763747,0.0032,119740.0,119730.0,0.86302619]
[1752462765064,0.0186,119740.0,119730.0,0.86302619]
[1752462766383,0.0336,119740.0,119730.0,0.86302619]
[1752462767409,0.03558,119740.0,119730.0,0.86302619]
[1752462767953,0.0336,119740.0,119730.0,0.86302619]
[1752462768383,0.0186,119740.0,119730.0,0.86302619]
[1752462769828,0.0032,119740.0,119730.0,0.86302619]
[1752462770683,0.0357,119740.0,119730.0,0.86302619]
[1752462770882,0.0197,119740.0,119730.0,0.86302619]
[1752462771094,0.0032,119740.0,119730.0,0.86302619]
[1752462772159,0.0347,119740.0,119730.0,1.06310619]
[1752462772399,0.0032,119740.0,119730.0,1.06310619]
[1752462773053,0.0189,119740.0,119730.0,1.06310619]
[1752462773467,0.0032,119740.0,119730.0,1.06310619]
[1752462775339,0.0032,119740.0,119730.0,1.36498194]
[1752462775573,0.0032,119740.0,119730.0,1.06310619]
[1752462776179,0.0032,119740.0,119730.0,1.36498194]
[1752462776412,0.0032,119740.0,119730.0,1.39628194]
[1752462779836,0.0032,119740.0,119730.0,1.09440619]
[1752462780047,0.0032,119740.0,119730.0,1.39628194]
[1752462780926,0.0032,119740.0,119730.0,1.38118194]
[1752462781791,0.0002,119750.0,119730.0,1.39708194]
[1752462782000,0.0002,119750.0,119740.0,0.5601236]
[1752462782212,0.0002,119750.0,119740.0,0.64860568]
[1752462782420,0.0002,119750.0,119740.0,0.99878568]
[1752462783090,0.0002,119750.0,119740.0,0.69690993]
[1752462783318,0.0002,119750.0,119740.0,0.99878568]
[1752462783559,0.0002,119760.0,119750.0,0.33197575]
[1752462783788,0.0202,119780.0,119750.0,0.64559568]
[1752462784013,0.051,119780.0,119760.0,0.23197993]
[1752462784243,0.33403575,119770.0,119760.0,0.08542993]
[1752462784457,0.33403575,119770.0,119760.0,0.46249]
[1752462784458,0.33601575,119770.0,119760.0,0.46249]
[1752462784677,0.335934,119770.0,119760.0,0.46249]
[1752462786286,0.335934,119770.0,119760.0,0.46245]
[1752462786512,0.03405825,119770.0,119760.0,0.46245]
[1752462786744,0.335934,119770.0,119760.0,0.46245]
[1752462787867,0.337934,119770.0,119760.0,0.46245]
[1752462788751,0.03605825,119770.0,119760.0,0.33413]
[1752462789013,0.03605825,119770.0,119760.0,0.46253]
[1752462789239,0.337934,119770.0,119760.0,0.46253]
[1752462791836,0.03605825,119770.0,119760.0,0.46253]
[1752462792067,0.337934,119770.0,119760.0,0.46253]
[1752462793393,0.337934,119770.0,119760.0,0.75803]
[1752462794970,0.336574,119770.0,119760.0,0.75803]
[1752462795175,0.336574,119770.0,119760.0,0.95807]
[1752462796347,0.03469825,119770.0,119760.0,0.95807]
[1752462796577,0.63980975,119770.0,119760.0,0.82967]
[1752462796779,0.337934,119770.0,119760.0,0.95807]
[1752462797655,0.337934,119770.0,119760.0,0.82967]
[1752462797884,0.337934,119770.0,119760.0,0.95803]
[1752462799295,0.337934,119770.0,119760.0,0.66253]
[1752462799746,0.03605825,119770.0,119760.0,0.66253]
[1752462799972,0.337934,119770.0,119760.0,0.66253]
[1752462803949,0.336574,119770.0,119760.0,0.66253]
[1752462807054,0.337934,119770.0,119760.0,0.66253]
[1752462807988,0.677934,119770.0,119760.0,0.66253]
[1752462809465,0.676574,119770.0,119760.0,0.66253]
[1752462810098,0.677934,119770.0,119760.0,0.66253]
[1752462810515,0.97980975,119770.0,119760.0,0.66253]
[1752462810724,0.677934,119770.0,119760.0,0.66253]
[1752462810869,0.9943506,119770.0,119760.0,0.66253]
[1752462811463,0.9943506,119770.0,119760.0,0.66249]
[1752462812529,0.9923506,119770.0,119760.0,0.66249]
[1752462812760,0.9933506,119770.0,119760.0,0.66249]
[1752462812947,0.9973506,119770.0,119760.0,0.66249]
[1752462813563,0.3935991,119770.0,119760.0,0.66249]
[1752462813780,0.69547485,119770.0,119760.0,0.66249]
[1752462814194,0.3935991,119770.0,119760.0,0.66249]
[1752462814395,0.9973506,119770.0,119760.0,0.66249]
[1752462814814,0.69547485,119770.0,119760.0,0.66249]
[1752462819058,0.9973506,119770.0,119760.0,0.66249]
[1752462824391,0.69547485,119770.0,119760.0,0.66249]
[1752462826388,0.9973506,119770.0,119760.0,0.66249]
[1752462831794,0.69547485,119770.0,119760.0,0.66249]
[1752462831994,0.69411485,119770.0,119760.0,0.66249]
[1752462833040,0.69411485,119770.0,119760.0,0.66449]
[1752462833232,0.6614166,119770.0,119760.0,0.66773]
[1752462836443,0.64687575,119770.0,119760.0,0.66773]
[1752462839528,0.345,119770.0,119760.0,0.66773]
[1752462839761,0.64687575,119770.0,119760.0,0.66773]
[1752462840351,0.64687575,119770.0,119760.0,0.66757]
[1752462847942,0.64687575,119770.0,119760.0,0.68337]
[1752462848182,0.64687575,119770.0,119760.0,0.69847]
[1752462848371,0.66385575,119770.0,119760.0,0.5371]
[1752462848572,0.67945575,119770.0,119760.0,0.66229]
[1752462849009,0.67945575,119770.0,119760.0,0.66522]
[1752462849241,0.67945575,119770.0,119760.0,0.6672]
[1752462849440,0.37758,119770.0,119760.0,0.6672]
[1752462849647,0.66385575,119770.0,119760.0,0.6672]
[1752462850465,0.64885575,119770.0,119760.0,0.6672]
[1752462854496,0.66485575,119770.0,119760.0,0.6672]
[1752462859490,0.6611058,119770.0,119760.0,0.6672]
[1752462860180,0.6763058,119770.0,119760.0,0.6672]
[1752462860664,0.6611058,119770.0,119760.0,0.6672]
[1752462861468,0.69084665,119770.0,119760.0,0.66229]
[1752462861843,0.9927224,119770.0,119760.0,0.53417]
[1752462862090,0.9927224,119770.0,119760.0,0.53421]
[1752462862091,1.07951233,119770.0,119760.0,0.53421]
[1752462862307,1.07951233,119770.0,119760.0,0.66233]
[1752462862535,1.07951233,119770.0,119760.0,0.53421]
[1752462862954,1.07851233,119770.0,119760.0,0.53421]
[1752462863165,1.07751233,119770.0,119760.0,0.66233]
[1752462863374,1.12751233,119770.0,119760.0,0.66233]
[1752462863597,1.13451233,119770.0,119760.0,0.66333]
[1752462863797,1.12751233,119770.0,119760.0,0.66233]
[1752462864369,1.13651233,119770.0,119760.0,0.66333]
[1752462864752,1.13351233,119770.0,119760.0,0.66333]
[1752462864948,1.13851233,119770.0,119760.0,0.66333]
[1752462867360,1.26612749,119770.0,119760.0,0.6549906]
[1752462867532,1.49873692,119770.0,119760.0,0.6549906]
[1752462867727,1.49873692,119770.0,119760.0,0.6466512]
[1752462867963,1.19686117,119770.0,119760.0,0.6466512]
[1752462868092,1.19686117,119770.0,119760.0,0.6383118]
[1752462868312,1.59251583,119770.0,119760.0,0.63530579]
[1752462868517,1.60086495,119770.0,119760.0,0.62696639]
[1752462868895,1.59251583,119770.0,119760.0,0.62696639]
[1752462869099,1.59251583,119770.0,119760.0,0.61862699]
[1752462869308,1.58751583,119770.0,119760.0,0.3292]
[1752462869537,0.40354085,119760.0,119730.0,0.26705643]
[1752462869757,0.99037235,119740.0,119730.0,0.26705643]
[1752462869957,1.07580228,119740.0,119730.0,0.26705643]
[1752462870170,1.07716228,119740.0,119730.0,0.26705643]
[1752462870594,1.07716228,119740.0,119730.0,0.39521643]
[1752462870823,1.07716228,119740.0,119730.0,0.39621643]
[1752462871248,1.07716228,119740.0,119730.0,0.39521643]
[1752462871676,1.21159221,119740.0,119730.0,0.39521643]
[1752462871879,1.12616228,119740.0,119730.0,0.39521643]
[1752462872069,1.12816228,119740.0,119730.0,0.39521643]
[1752462875076,0.77592653,119740.0,119730.0,0.39521643]
[1752462875291,0.77692653,119740.0,119730.0,0.39721643]
[1752462875720,0.82592653,119740.0,119730.0,0.39721643]
[1752462875949,0.47505078,119740.0,119730.0,0.39721643]
[1752462876177,0.77692653,119740.0,119730.0,0.39721643]
[1752462876392,0.74682653,119740.0,119730.0,0.40220643]
[1752462877039,0.74682653,119740.0,119730.0,0.41720643]
[1752462877040,0.74484653,119740.0,119730.0,0.41720643]
[1752462877262,0.74484653,119740.0,119730.0,0.43310643]
[1752462877913,0.44297078,119740.0,119730.0,0.43310643]
[1752462878128,0.74484653,119740.0,119730.0,0.43310643]
[1752462878348,0.003,119740.0,119730.0,0.43310643]
[1752462878574,0.30487575,119740.0,119730.0,0.43410643]
[1752462878766,0.3194166,119740.0,119730.0,0.43410643]
[1752462879182,0.3194166,119740.0,119730.0,0.43310643]
[1752462879402,0.3194166,119740.0,119730.0,0.43410643]
[1752462879861,0.3194166,119740.0,119730.0,0.43310643]
[1752462880048,0.6594166,119740.0,119730.0,0.43410643]
[1752462881621,0.35754085,119740.0,119730.0,0.43410643]
[1752462882041,0.6594166,119740.0,119730.0,0.43410643]
[1752462882820,0.6594166,119740.0,119730.0,0.43310643]
[1752462883037,0.6594166,119740.0,119730.0,0.43410643]
[1752462883461,0.6594166,119740.0,119730.0,0.43310643]
[1752462883670,0.6594166,119740.0,119730.0,0.43410643]
[1752462884330,0.6594166,119740.0,119730.0,0.36713]
[1752462885528,0.6594166,119740.0,119730.0,0.36613]
[1752462885732,0.6594166,119740.0,119730.0,0.36713]
[1752462887272,0.6594166,119740.0,119730.0,0.36613]
[1752462887873,0.6594166,119740.0,119730.0,0.36713]
[1752462889314,0.6594166,119740.0,119730.0,0.35797229]
[1752462889530,0.6594166,119740.0,119730.0,0.35407145]
[1752462889961,0.6594166,119740.0,119730.0,0.34611092]
[1752462890196,0.6594166,119740.0,119730.0,0.34711092]
[1752462891372,0.6594166,119740.0,119730.0,0.35004092]
[1752462891779,0.6594166,119740.0,119730.0,0.34186377]
[1752462892182,0.6594166,119740.0,119730.0,0.33427]
[1752462892602,0.6594166,119740.0,119730.0,0.33327]
[1752462892810,0.6594166,119740.0,119730.0,0.33427]
[1752462893170,0.6594166,119740.0,119730.0,0.33327]
[1752462893384,0.6594166,119740.0,119730.0,0.33427]
[1752462893595,0.35754085,119740.0,119730.0,0.35027]
[1752462893799,0.6594166,119740.0,119730.0,0.35027]
[1752462894460,0.6594166,119740.0,119730.0,0.33427]
[1752462894678,0.6594166,119740.0,119730.0,0.33327]
[1752462894907,0.6594166,119740.0,119730.0,0.33427]
[1752462895932,0.6594166,119740.0,119730.0,0.33327]
[1752462896137,0.6594166,119740.0,119730.0,0.33427]
[1752462896863,0.6594166,119740.0,119730.0,0.36587]
[1752462899768,0.6594166,119740.0,119730.0,0.33427]
[1752462901526,0.6594166,119740.0,119730.0,0.36597]
[1752462902621,0.6594166,119740.0,119730.0,0.35057]
[1752462902842,0.6594166,119740.0,119730.0,0.33427]
[1752462905247,0.35754085,119740.0,119730.0,0.33427]
[1752462905493,0.6594166,119740.0,119730.0,0.33427]
[1752462905717,0.57296811,119740.0,119730.0,0.33427]
[1752462907626,0.58750896,119740.0,119730.0,0.33427]
[1752462909122,0.57763339,119740.0,119730.0,0.33427]
[1752462909584,0.57763339,119740.0,119730.0,0.33423]
[1752462910918,0.57695129,119740.0,119730.0,0.33423]
[1752462911603,0.57695129,119740.0,119730.0,0.33323]
[1752462911828,0.57695129,119740.0,119730.0,0.33423]
[1752462912255,0.57695129,119740.0,119730.0,0.33323]
[1752462912476,0.57695129,119740.0,119730.0,0.33423]
[1752462912694,0.57894129,119740.0,119730.0,0.33423]
[1752462912936,0.57743821,119740.0,119730.0,0.33423]
[1752462913651,0.57743821,119740.0,119730.0,0.6683]
[1752462914674,0.57743821,119740.0,119730.0,0.6673]
[1752462914929,0.57743821,119740.0,119730.0,0.66826]
[1752462915847,0.57544821,119740.0,119730.0,0.66826]
[1752462918353,0.27357246,119740.0,119730.0,0.66826]
[1752462918979,0.57544821,119740.0,119730.0,0.66826]
[1752462924384,0.27357246,119740.0,119730.0,0.66826]
[1752462924595,0.57544821,119740.0,119730.0,0.66826]
[1752462925039,0.4992645,119740.0,119730.0,0.66826]